fUSD/lending_fUSD_20250523
["ID","MTS","AMOUNT","RATE_DAILY","PERIOD"]
[362125132,1748011840191,-612.0,0.00023,2]
[362125133,1748011840201,-21862.70090933,0.00023,2]
[362125134,1748011840215,-3226.51497736,0.00023,2]
[362125135,1748011840227,-3583.12810072,0.00023,2]
[362125136,1748011840240,-234941.805,0.00023,2]
[362125137,1748011840253,-470.493024,0.00023,2]
[362125138,1748011840495,-0.01693617,0.00023,2]
[362125139,1748011840511,-2148.54653193,0.00023,2]
[362125140,1748011840603,-212.36485339,0.00023,2]
[362125143,1748011843074,-1136.52086828,0.00023,2]
[362125145,1748011843139,-3699.979966,0.00023,2]
[362125161,1748011843264,-37331.53615042,0.00023,2]
[362125191,1748011843522,-226685.74484932,0.00023,2]
[362125193,1748011843531,-151.0,0.00023,7]
[362125195,1748011843541,-151.0,0.00023,7]
[362125197,1748011843550,-355.180576,0.00023,7]
[362125199,1748011843559,-355.180576,0.00023,7]
[362125201,1748011843569,-152.758309,0.00023,7]
[362125203,1748011843579,-151.0,0.00023,7]
[362125205,1748011843588,-229.612003,0.00023,7]
[362125207,1748011843597,-151.0,0.00023,7]
[362125209,1748011843606,-151.706713,0.00023,7]
[362125210,1748011843615,-151.0,0.00023,7]
[362125211,1748011843625,-174.174177,0.00023,7]
[362125212,1748011843634,-155.707883,0.00023,7]
[362125213,1748011843643,-152.873619,0.00023,7]
[362125215,1748011843652,-151.0,0.00023,7]
[362125216,1748011843661,-151.0,0.00023,7]
[362125218,1748011843671,-151.0,0.00023,7]
[362125220,1748011843680,-151.0,0.00023,7]
[362125222,1748011843689,-151.0,0.00023,7]
[362125224,1748011843698,-152.673878,0.00023,7]
[362125225,1748011843707,-151.0,0.00023,7]
[362125226,1748011843716,-151.0,0.00023,7]
[362125227,1748011843726,-152.118291,0.00023,7]
[362125228,1748011843735,-213.634594,0.00023,7]
[362125229,1748011843744,-530.498962,0.00023,7]
[362125230,1748011843754,-151.0,0.00023,7]
[362125231,1748011843763,-171.393306,0.00023,7]
[362125232,1748011843772,-311.693093,0.00023,7]
[362125233,1748011843781,-311.693093,0.00023,7]
[362125234,1748011843791,-151.0,0.00023,7]
[362125235,1748011843800,-151.0,0.00023,7]
[362125236,1748011843809,-154.692772,0.00023,7]
[362125237,1748011843819,-151.0,0.00023,7]
[362125239,1748011843829,-151.849704,0.00023,7]
[362125241,1748011843838,-151.0,0.00023,7]
[362125243,1748011843847,-1027.23,0.00023014,2]
[362125245,1748011843856,-714.58,0.00023014,2]
[362125246,1748011843866,-457.8,0.00023014,2]
[362125247,1748011843875,-387.98368963,0.00023047,2]
[362125248,1748011843884,-816.58711553,0.00023176,8]
[362125249,1748011843894,-167.55,0.00023237,2]
[362125250,1748011843903,-417.69,0.00023347,2]
[362125251,1748011843912,-312.95,0.00023351,2]
[362125252,1748011843922,-312.95,0.00023357,2]
[362125253,1748011843931,-312.95,0.00023363,2]
[362125254,1748011843940,-312.95,0.00023369,2]
[362125255,1748011843949,-312.95,0.00023375,2]
[362125256,1748011843960,-312.95,0.00023381,2]
[362125257,1748011843970,-312.95,0.00023387,2]
[362125258,1748011843979,-312.95,0.00023394,2]
[362125259,1748011843989,-312.95,0.000234,2]
[362125260,1748011843998,-312.95,0.00023406,2]
[362125261,1748011844007,-312.95,0.00023412,2]
[362125262,1748011844017,-312.95,0.00023418,2]
[362125263,1748011844027,-312.95,0.00023424,2]
[362125264,1748011844036,-916.68,0.00023425,2]
[362125265,1748011844047,-805.83,0.00023425,2]
[362125266,1748011844056,-805.83,0.00023425,2]
[362125267,1748011844065,-805.83,0.00023425,2]
[362125268,1748011844075,-402.51,0.00023425,2]
[362125269,1748011844084,-312.95,0.0002343,2]
[362125270,1748011844093,-312.95,0.00023436,2]
[362125271,1748011844103,-312.95,0.00023443,2]
[362125272,1748011844112,-312.95,0.00023449,2]
[362125273,1748011844122,-312.95,0.00023455,2]
[362125274,1748011844131,-312.95,0.00023461,2]
[362125275,1748011844141,-312.95,0.00023467,2]
[362125276,1748011844150,-3539.65485914,0.00023582,2]
[362125277,1748011844159,-1000.0,0.000236,2]
[362125278,1748011844168,-226.31,0.00023606,2]
[362125279,1748011844177,-8462.37614539,0.00023674,2]
[362125280,1748011844186,-1225.49,0.00023741,2]
[362125281,1748011844195,-198.99,0.00023836,2]
[362125282,1748011844204,-1661.53,0.00023836,2]
[362125283,1748011844214,-162.8,0.00023836,2]
[362125284,1748011844223,-150.39,0.00023836,2]
[362125285,1748011844233,-651.33,0.00023836,2]
[362125286,1748011844242,-150.39,0.00023836,2]
[362125287,1748011844251,-353.35,0.00023836,2]
[362125288,1748011844260,-150.39,0.00023836,2]
[362125289,1748011844270,-150.39,0.00023836,2]
[362125290,1748011844279,-170.17,0.00023836,2]
[362125291,1748011844288,-1300.0,0.000239,8]
[362125292,1748011844297,-1000.0,0.00023908,2]
[362125293,1748011844306,-816.58711553,0.00023934,10]
[362125294,1748011844316,-202.46,0.00024109,2]
[362125295,1748011844325,-417.69,0.00024134,2]
[362125296,1748011844334,-1000.0,0.000242,2]
[362125297,1748011844343,-3539.65485914,0.00024264,2]
[362125298,1748011844353,-594.866551,0.00024303,2]
[362125299,1748011844362,-8462.37614539,0.00024449,2]
[362125300,1748011844371,-2011.50504796,0.00024567,3]
[362125301,1748011844380,-1000.0,0.000246,2]
[362125302,1748011844389,-200.0,0.00024601,2]
[362125303,1748011844398,-309.40830494,0.00024664,2]
[362125304,1748011844407,-816.58711553,0.00024693,11]
[362125305,1748011844417,-1000.0,0.000247,2]
[362125306,1748011844426,-184.32652703,0.00024799,2]
[362125307,1748011844435,-299.477129,0.00024799,7]
[362125308,1748011844445,-151.0,0.000248,7]
[362125309,1748011844456,-151.0,0.000248,7]
[362125310,1748011844656,-151.0,0.000248,7]
[362125311,1748011844665,-463.88,0.000248,7]
[362125312,1748011844675,-586.17289425,0.000248,3]
[362125313,1748011844684,-151.0,0.000249,7]
[362125314,1748011844692,-151.688514,0.000249,7]
[362125315,1748011844702,-355.180576,0.000249,7]
[362125316,1748011844711,-355.180576,0.000249,7]
[362125317,1748011844720,-151.0,0.000249,7]
[362125318,1748011844729,-151.0,0.000249,7]
[362125319,1748011844739,-2600.0,0.000249,9]
[362125320,1748011844748,-114212.165827,0.000249,3]
[362125321,1748011844757,-3539.65485914,0.00024946,2]
[362125322,1748011844766,-213.634594,0.00024999,7]
[362125323,1748011844776,-530.498962,0.00024999,7]
[362125324,1748011844785,-151.0,0.00024999,7]
[362125325,1748011844794,-151.0,0.00024999,7]
[362125326,1748011844803,-213.0,0.00025,10]
[362125327,1748011844813,-163.49,0.00025019,2]
[362125328,1748011844822,-1299.10819,0.0002504,2]
[362125329,1748011844832,-200.0,0.000251,2]
[362125330,1748011844841,-207.0,0.0002515,2]
[362125331,1748011844852,-151.0,0.00025197,7]
[362125332,1748011844861,-311.693093,0.00025197,7]
[362125333,1748011844870,-311.693093,0.00025197,7]
[362125334,1748011844879,-151.0,0.00025197,7]
[362125335,1748011844889,-154.692772,0.00025197,7]
[362125336,1748011844899,-151.0,0.00025197,7]
[362125337,1748011844908,-151.404814,0.00025197,7]
[362125338,1748011844917,-1000.0,0.000252,2]
[362125339,1748011844926,-8462.37614539,0.00025223,2]
[362125340,1748011844936,-816.58711553,0.00025452,13]
[362125341,1748011844945,-202.46,0.00025479,2]
[362125342,1748011844955,-1000.0,0.000256,2]
[362125343,1748011844965,-207.0,0.00025618,7]
[362125344,1748011844975,-3539.65485914,0.00025628,2]
[362125345,1748011844984,-207.0,0.0002567,2]
[362125346,1748011844994,-150.0,0.00025678,2]
[362125347,1748011845003,-1000.0,0.000257,2]
[362125348,1748011845012,-463.88,0.000258,7]
[362125349,1748011845022,-150.0,0.00025838,2]
[362125350,1748011845032,-151.0,0.00025965,2]
[362125351,1748011845043,-151.0,0.00025965,2]
[362125352,1748011845054,-1199.20597015,0.00025965,2]
[362125353,1748011845063,-151.0,0.00025965,2]
[362125354,1748011845074,-668.65185757,0.00025965,2]
[362125355,1748011845086,-207.4,0.00025965,2]
[362125356,1748011845095,-668.65185757,0.00025965,2]
[362125357,1748011845105,-8462.37614539,0.00025998,2]
[362125358,1748011845115,-18941.85779649,0.00026,5]
[362125359,1748011845124,-151.0,0.00026,7]
[362125360,1748011845134,-151.0,0.00026,7]
[362125361,1748011845143,-151.0,0.00026,7]
[362125362,1748011845152,-151.0,0.00026,7]
[362125363,1748011845162,-287.419456,0.00026,7]
[362125364,1748011845171,-151.0,0.00026,7]
[362125365,1748011845180,-1225.49,0.00026005,2]
[362125366,1748011845189,-150.0,0.00026164,2]
[362125367,1748011845198,-387.98368963,0.00026193,2]
[362125368,1748011845208,-207.0,0.000262,2]
[362125369,1748011845216,-1000.0,0.000262,2]
[362125370,1748011845226,-816.58711553,0.0002621,14]
[362125371,1748011845236,-1000.0,0.00026253,2]
[362125372,1748011845245,-1000.0,0.00026299,2]
[362125373,1748011845254,-151.93372681,0.00026301,2]
[362125374,1748011845264,-3539.65485914,0.00026309,2]
[362125375,1748011845273,-1000.0,0.00026329,2]
[362125376,1748011845282,-1000.0,0.00026377,2]
[362125377,1748011845291,-151.0,0.00026424,7]
[362125378,1748011845301,-155.512956,0.00026424,7]
[362125379,1748011845310,-151.0,0.00026424,7]
[362125380,1748011845320,-151.0,0.00026424,7]
[362125381,1748011845329,-151.0,0.00026424,7]
[362125382,1748011845339,-151.0,0.00026424,7]
[362125383,1748011845348,-309.40830494,0.00026429,2]
[362125384,1748011845358,-936.0,0.00026472,2]
[362125385,1748011845368,-1310.0,0.00026472,2]
[362125386,1748011845377,-631.0,0.00026472,2]
[362125387,1748011845388,-799.0,0.00026472,2]
[362125388,1748011845397,-1260.0,0.00026472,2]
[362125389,1748011845407,-586.0,0.00026472,2]
[362125390,1748011845416,-554.0,0.00026472,2]
[362125391,1748011845425,-921.0,0.00026472,2]
[362125392,1748011845434,-1461.0,0.00026472,2]
[362125393,1748011845444,-881.0,0.00026504,2]
[362125394,1748011845453,-154.0,0.00026504,2]
[362125395,1748011845462,-6838.0,0.00026504,2]
[362125396,1748011845472,-4052.0,0.00026504,2]
[362125397,1748011845482,-850.315,0.00026504,2]
[362125398,1748011845491,-1000.0,0.00026506,2]
[362125399,1748011845500,-151.0,0.00026513,2]
[362125400,1748011845510,-693.3919763,0.00026513,2]
[362125401,1748011845520,-165.54,0.00026528,2]
[362125402,1748011845530,-1000.0,0.00026543,2]
[362125403,1748011845539,-150.0,0.00026553,2]
[362125404,1748011845548,-19999.99,0.00026591,2]
[362125405,1748011845557,-1000.0,0.000266,2]
[362125406,1748011845568,-183.89,0.00026676,2]
[362125407,1748011845578,-1000.0,0.000267,2]
[362125408,1748011845587,-207.0,0.0002672,2]
[362125409,1748011845597,-1000.0,0.00026737,2]
[362125410,1748011845606,-500.0,0.00026745,7]
[362125411,1748011845616,-150.0,0.00026756,2]
[362125412,1748011845625,-150.0,0.00026758,2]
[362125413,1748011845635,-150.0,0.00026763,2]
[362125414,1748011845644,-8462.37614539,0.00026772,2]
[362125415,1748011845654,-150.0,0.00026785,2]
[362125416,1748011845663,-150.0,0.0002679,2]
[362125417,1748011845673,-3900.0,0.000268,9]
[362125418,1748011845682,-150.0,0.00026803,2]
[362125419,1748011845691,-4025.27,0.00026821,2]
[362125420,1748011845701,-202.46,0.00026849,2]
[362125422,1748011845710,-150.0,0.00026869,2]
[362125423,1748011845720,-18736.9438251,0.00026893,2]
[362125424,1748011845730,-151.0,0.000269,7]
[362125425,1748011845739,-151.0,0.000269,7]
[362125426,1748011845749,-355.180576,0.000269,7]
[362125428,1748011845758,-355.180576,0.000269,7]
[362125429,1748011845767,-463.88,0.000269,7]
[362125430,1748011845777,-5300.0,0.000269,9]
[362125431,1748011845786,-150.0,0.0002694,2]
[362125432,1748011845795,-150.0,0.00026965,2]
[362125433,1748011845805,-816.58711553,0.00026969,16]
[362125434,1748011845817,-1061.3799842,0.0002698,2]
[362125435,1748011845826,-3539.65485914,0.00026991,2]
[362125436,1748011845836,-781.0,0.00026999,2]
[362125437,1748011845845,-16934.19130742,0.00027,2]
[362125438,1748011845855,-1362.0,0.00027,2]
[362125439,1748011845866,-1362.0,0.00027,2]
[362125440,1748011845876,-1362.0,0.00027,2]
[362125441,1748011845885,-1362.0,0.00027,2]
[362125442,1748011845894,-1362.0,0.00027,2]
[362125443,1748011845904,-1362.0,0.00027,2]
[362125444,1748011845913,-1362.0,0.00027,2]
[362125445,1748011845922,-1362.0,0.00027,2]
[362125446,1748011845932,-1362.0,0.00027,2]
[362125447,1748011845941,-1362.0,0.00027,2]
[362125448,1748011845951,-151.0,0.00027061,2]
[362125449,1748011845960,-719.04747942,0.00027061,2]
[362125450,1748011845970,-685.61474277,0.00027068,2]
[362125451,1748011845980,-167.55,0.00027072,2]
[362125452,1748011845994,-438.11143036,0.00027128,2]
[362125453,1748011846003,-685.61474277,0.00027178,2]
[362125454,1748011846013,-572891.44264497,0.000272,10]
[362125455,1748011846022,-1000.0,0.000272,2]
[362125456,1748011846034,-1000.0,0.00027212,2]
[362125457,1748011846046,-1000.0,0.00027227,2]
[362125458,1748011846055,-207.0,0.0002725,2]
[362125459,1748011846066,-1739.59,0.0002726,2]
[362125460,1748011846077,-701.83,0.0002726,2]
[362125461,1748011846087,-805.3,0.0002726,2]
[362125462,1748011846096,-244.007811,0.00027272,7]
[362125463,1748011846106,-685.61474277,0.00027288,2]
[362125464,1748011846116,-1000.0,0.00027315,2]
[362125465,1748011846126,-150.0,0.00027319,2]
[362125466,1748011846135,-150.0,0.00027323,2]
[362125467,1748011846144,-156.587,0.00027334,2]
[362125468,1748011846153,-1243.57659104,0.00027334,2]
[362125469,1748011846162,-487.58964411,0.00027334,2]
[362125470,1748011846173,-215.0738,0.00027334,2]
[362125471,1748011846182,-213.634594,0.00027334,7]
[362125472,1748011846191,-530.498962,0.00027334,7]
[362125473,1748011846201,-151.0,0.00027334,7]
[362125474,1748011846210,-151.0,0.00027334,7]
[362125475,1748011846219,-1000.0,0.00027376,2]
[362125476,1748011846228,-194.44095505,0.00027387,2]
[362125477,1748011846237,-151.0,0.0002739,7]
[362125478,1748011846247,-673.01159983,0.00027396,2]
[362125479,1748011846256,-1000.0,0.00027397,10]
[362125480,1748011846265,-200.0,0.00027397,10]
[362125481,1748011846274,-151.0,0.00027397,7]
[362125482,1748011846284,-151.0,0.00027397,7]
[362125483,1748011846293,-271.802368,0.00027397,7]
[362125484,1748011846302,-1025.323367,0.00027397,4]
[362125485,1748011846311,-238.759681,0.00027397,4]
[362125486,1748011846322,-155.367075,0.00027397,4]
[362125487,1748011846331,-1041.468699,0.00027397,4]
[362125489,1748011846341,-158.005189,0.00027397,4]
[362125491,1748011846350,-420.0,0.00027397,2]
[362125493,1748011846359,-355.180576,0.00027397,7]
[362125495,1748011846368,-355.180576,0.00027397,7]
[362125497,1748011846378,-355.180576,0.00027397,7]
[362125499,1748011846387,-355.180576,0.00027397,7]
[362125501,1748011846396,-355.180576,0.00027397,7]
[362125503,1748011846405,-355.180576,0.00027397,7]
[362125505,1748011846414,-355.180576,0.00027397,7]
[362125507,1748011846424,-355.180576,0.00027397,7]
[362125509,1748011846432,-420.0,0.00027397,4]
[362125511,1748011846441,-151.0,0.00027397,7]
[362125513,1748011846451,-151.0,0.00027397,7]
[362125515,1748011846460,-151.0,0.00027397,7]
[362125517,1748011846468,-420.0,0.00027397,4]
[362125519,1748011846478,-422.52887631,0.00027397,4]
[362125521,1748011846487,-420.0,0.00027397,4]
[362125523,1748011846496,-420.0,0.00027397,4]
[362125525,1748011846506,-420.0,0.00027397,4]
[362125527,1748011846515,-420.0,0.00027397,4]
[362125529,1748011846524,-420.0,0.00027397,4]
[362125531,1748011846533,-187.89067996,0.00027397,4]
[362125533,1748011846542,-420.0,0.00027397,4]
[362125535,1748011846551,-420.0,0.00027397,4]
[362125537,1748011846560,-420.0,0.00027397,4]
[362125539,1748011846571,-420.0,0.00027397,4]
[362125541,1748011846580,-420.0,0.00027397,4]
[362125543,1748011846589,-420.0,0.00027397,4]
[362125545,1748011846598,-420.0,0.00027397,4]
[362125547,1748011846607,-420.0,0.00027397,4]
[362125549,1748011846616,-420.0,0.00027397,4]
[362125550,1748011846625,-420.0,0.00027397,4]
[362125552,1748011846634,-420.0,0.00027397,4]
[362125554,1748011846644,-420.0,0.00027397,4]
[362125556,1748011846654,-420.0,0.00027397,4]
[362125558,1748011846663,-420.0,0.00027397,4]
[362125560,1748011846672,-420.0,0.00027397,4]
[362125562,1748011846681,-420.0,0.00027397,4]
[362125564,1748011846691,-420.0,0.00027397,4]
[362125566,1748011846700,-420.0,0.00027397,4]
[362125568,1748011846709,-427.34768518,0.00027397,4]
[362125570,1748011846725,-311.8964132,0.00027397,4]
[362125572,1748011846735,-420.0,0.00027397,4]
[362125574,1748011846745,-420.0,0.00027397,4]
[362125576,1748011846755,-420.0,0.00027397,4]
[362125578,1748011846765,-420.0,0.00027397,4]
[362125580,1748011846775,-422.83063795,0.00027397,4]
[362125582,1748011846784,-420.0,0.00027397,4]
[362125584,1748011846793,-420.0,0.00027397,4]
[362125586,1748011846802,-420.0,0.00027397,4]
[362125588,1748011846811,-325.66725862,0.00027397,4]
[362125590,1748011846825,-420.0,0.00027397,4]
[362125592,1748011846834,-330.09084736,0.00027397,4]
[362125594,1748011846843,-420.0,0.00027397,4]
[362125596,1748011846853,-410.74158603,0.00027397,4]
[362125598,1748011846862,-420.0,0.00027397,4]
[362125600,1748011846872,-479.74961059,0.00027397,4]
[362125602,1748011846881,-590.11188387,0.00027397,30]
[362125604,1748011846890,-420.0,0.00027397,4]
[362125606,1748011846899,-420.0,0.00027397,4]
[362125608,1748011846909,-420.0,0.00027397,4]
[362125610,1748011846919,-420.0,0.00027397,4]
[362125612,1748011846928,-420.0,0.00027397,4]
[362125613,1748011846937,-420.0,0.00027397,4]
[362125615,1748011846947,-420.0,0.00027397,4]
[362125617,1748011846956,-541.00612357,0.00027397,4]
[362125619,1748011846965,-399.60112525,0.00027397,4]
[362125621,1748011846974,-420.76406177,0.00027397,4]
[362125624,1748011846984,-420.0,0.00027397,4]
[362125626,1748011846993,-420.0,0.00027397,4]
[362125627,1748011847003,-420.0,0.00027397,4]
[362125629,1748011847012,-420.0,0.00027397,4]
[362125631,1748011847021,-420.0,0.00027397,4]
[362125633,1748011847030,-420.0,0.00027397,4]
[362125635,1748011847040,-404.22385567,0.00027397,4]
[362125637,1748011847052,-420.0,0.00027397,4]
[362125639,1748011847061,-420.0,0.00027397,4]
[362125641,1748011847074,-420.0,0.00027397,4]
[362125643,1748011847083,-151.0,0.00027397,7]
[362125645,1748011847094,-227.614076,0.00027397,7]
[362125647,1748011847103,-420.0,0.00027397,4]
[362125649,1748011847112,-173.9653135,0.00027397,4]
[362125651,1748011847122,-420.0,0.00027397,4]
[362125653,1748011847131,-420.0,0.00027397,4]
[362125655,1748011847140,-420.0,0.00027397,4]
[362125657,1748011847149,-420.0,0.00027397,4]
[362125659,1748011847158,-420.0,0.00027397,4]
[362125660,1748011847168,-420.0,0.00027397,4]
[362125662,1748011847177,-420.0,0.00027397,4]
[362125664,1748011847186,-359.28158359,0.00027397,4]
[362125666,1748011847196,-420.0,0.00027397,4]
[362125668,1748011847205,-179.17188673,0.00027397,4]
[362125670,1748011847214,-420.0,0.00027397,4]
[362125672,1748011847224,-420.0,0.00027397,4]
[362125674,1748011847233,-420.0,0.00027397,4]
[362125676,1748011847242,-420.0,0.00027397,4]
[362125678,1748011847251,-450.01,0.00027397,4]
[362125680,1748011847260,-423.58797875,0.00027397,4]
[362125682,1748011847269,-421.41959145,0.00027397,4]
[362125684,1748011847278,-423.45202607,0.00027397,4]
[362125685,1748011847287,-420.0,0.00027397,4]
[362125686,1748011847296,-421.22562932,0.00027397,4]
[362125687,1748011847305,-420.0,0.00027397,4]
[362125688,1748011847314,-420.0,0.00027397,4]
[362125689,1748011847328,-420.0,0.00027397,4]
[362125690,1748011847337,-420.0,0.00027397,4]
[362125691,1748011847346,-474.91940139,0.00027397,4]
[362125692,1748011847356,-420.0,0.00027397,4]
[362125693,1748011847365,-420.0,0.00027397,4]
[362125694,1748011847375,-420.0,0.00027397,4]
[362125695,1748011847384,-420.0,0.00027397,4]
[362125696,1748011847394,-420.0,0.00027397,4]
[362125697,1748011847403,-420.0,0.00027397,4]
[362125698,1748011847413,-420.0,0.00027397,4]
[362125699,1748011847422,-422.84788816,0.00027397,4]
[362125700,1748011847431,-420.0,0.00027397,4]
[362125701,1748011847440,-421.49539239,0.00027397,4]
[362125702,1748011847450,-420.0,0.00027397,4]
[362125703,1748011847460,-420.0,0.00027397,4]
[362125704,1748011847470,-420.0,0.00027397,4]
[362125705,1748011847479,-420.0,0.00027397,4]
[362125706,1748011847489,-420.0,0.00027397,4]
[362125707,1748011847498,-420.0,0.00027397,4]
[362125708,1748011847507,-420.0,0.00027397,4]
[362125709,1748011847517,-423.5795399,0.00027397,4]
[362125710,1748011847527,-421.92558841,0.00027397,4]
[362125711,1748011847538,-420.0,0.00027397,4]
[362125712,1748011847548,-420.0,0.00027397,4]
[362125713,1748011847558,-420.0,0.00027397,4]
[362125714,1748011847570,-385.99702393,0.00027397,4]
[362125715,1748011847579,-420.0,0.00027397,4]
[362125716,1748011847587,-420.0,0.00027397,4]
[362125717,1748011847597,-420.0,0.00027397,4]
[362125718,1748011847606,-420.0,0.00027397,4]
[362125719,1748011847615,-420.0,0.00027397,4]
[362125720,1748011847625,-420.0,0.00027397,4]
[362125721,1748011847634,-420.0,0.00027397,4]
[362125722,1748011847643,-500.0,0.00027397,2]
[362125723,1748011847653,-205.62955465,0.00027397,2]
[362125724,1748011847662,-420.0,0.00027397,4]
[362125725,1748011847671,-423.23097297,0.00027397,4]
[362125726,1748011847680,-420.0,0.00027397,4]
[362125727,1748011847690,-420.0,0.00027397,4]
[362125728,1748011847699,-420.0,0.00027397,4]
[362125729,1748011847708,-420.0,0.00027397,4]
[362125730,1748011847717,-420.0,0.00027397,4]
[362125731,1748011847726,-420.0,0.00027397,4]
[362125732,1748011847735,-420.0,0.00027397,4]
[362125733,1748011847745,-420.0,0.00027397,4]
[362125734,1748011847754,-420.0,0.00027397,2]
[362125735,1748011847763,-179.62389265,0.00027397,4]
[362125736,1748011847773,-420.0,0.00027397,4]
[362125737,1748011847782,-420.0,0.00027397,4]
[362125738,1748011847791,-420.0,0.00027397,4]
[362125739,1748011847801,-421.38746321,0.00027397,4]
[362125740,1748011847810,-420.0,0.00027397,4]
[362125741,1748011847822,-420.0,0.00027397,4]
[362125742,1748011847831,-548.89,0.00027397,4]
[362125743,1748011847840,-425.94112348,0.00027397,4]
[362125744,1748011847849,-420.0,0.00027397,4]
[362125745,1748011847859,-420.0,0.00027397,4]
[362125746,1748011847878,-420.0,0.00027397,4]
[362125747,1748011847887,-420.0,0.00027397,4]
[362125748,1748011847898,-420.0,0.00027397,4]
[362125749,1748011847909,-420.0,0.00027397,4]
[362125750,1748011847919,-420.0,0.00027397,4]
[362125751,1748011847930,-391.38694447,0.00027397,4]
[362125752,1748011847943,-230.46047775,0.00027397,4]
[362125753,1748011847952,-559.84,0.00027397,4]
[362125754,1748011847962,-420.0,0.00027397,4]
[362125755,1748011847971,-420.0,0.00027397,4]
[362125756,1748011847981,-420.0,0.00027397,4]
[362125757,1748011847993,-420.0,0.00027397,4]
[362125758,1748011848003,-420.0,0.00027397,4]
[362125759,1748011848012,-420.0,0.00027397,4]
[362125760,1748011848021,-420.0,0.00027397,4]
[362125761,1748011848031,-420.0,0.00027397,4]
[362125762,1748011848044,-420.0,0.00027397,4]
[362125763,1748011848053,-428.05639432,0.00027397,4]
[362125764,1748011848062,-420.0,0.00027397,4]
[362125765,1748011848075,-423.92402885,0.00027397,4]
[362125766,1748011848084,-422.56195733,0.00027397,4]
[362125767,1748011848093,-420.0,0.00027397,4]
[362125768,1748011848103,-420.0,0.00027397,4]
[362125769,1748011848114,-420.0,0.00027397,4]
[362125770,1748011848123,-424.99701308,0.00027397,4]
[362125771,1748011848133,-420.0,0.00027397,4]
[362125772,1748011848142,-420.52922173,0.00027397,4]
[362125773,1748011848151,-420.0,0.00027397,4]
[362125774,1748011848160,-420.0,0.00027397,4]
[362125775,1748011848170,-420.0,0.00027397,4]
[362125776,1748011848180,-420.0,0.00027397,4]
[362125777,1748011848192,-422.4312913,0.00027397,4]
[362125778,1748011848207,-436.73828572,0.00027397,4]
[362125779,1748011848220,-420.0,0.00027397,4]
[362125780,1748011848234,-422.76768155,0.00027397,4]
[362125781,1748011848246,-420.0,0.00027397,4]
[362125782,1748011848260,-420.0,0.00027397,4]
[362125783,1748011848269,-423.62677612,0.00027397,4]
[362125784,1748011848278,-420.0,0.00027397,4]
[362125785,1748011848287,-420.0,0.00027397,4]
[362125786,1748011848296,-420.0,0.00027397,4]
[362125787,1748011848305,-424.74295895,0.00027397,4]
[362125788,1748011848315,-420.0,0.00027397,4]
[362125789,1748011848326,-420.0,0.00027397,4]
[362125790,1748011848335,-420.0,0.00027397,4]
[362125791,1748011848345,-563.91,0.00027397,4]
[362125792,1748011848355,-487.25,0.00027397,4]
[362125793,1748011848365,-420.0,0.00027397,4]
[362125794,1748011848374,-391.06920007,0.00027397,4]
[362125795,1748011848383,-420.0,0.00027397,4]